[Event "Polish Youth Ekstraliga 2022"]
[Site "Lublin"]
[Date "2022.06.25"]
[Round "1.8"]
[White "Wilk, Igor"]
[Black "Meers, Hubert"]
[Result "0-1"]
[ECO "B42"]
[WhiteElo "1824"]
[BlackElo "2013"]
[Annotator "RC"]
[PlyCount "78"]
[EventDate "2022.06.24"]
[EventType "team-tourn"]
[EventCountry "POL"]
[SourceTitle "playchess.com"]
[Source "ChessBase"]
[SourceQuality "1"]
[TimeControl "40/5400+30:1800+30"]

1. e4 {[%emt 0:00:04]} c5 {[%emt 0:00:04]} 2. Nf3 {[%emt 0:00:07]} e6 {[%emt 0:00:04]} 3. d4 {[%emt 0:00:14]} cxd4 {[%emt 0:00:03]} 4. Nxd4 {[%emt 0:00:09]} a6 {[%emt 0:00:04]} 5. Bd3 {[%emt 0:01:20]} Nc6 {[%emt 0:00:22]} 6. Be3 {[%emt 0:01:56]} Nf6 {[%emt 0:02:47]} 7. O-O {[%emt 0:05:01]} Qc7 {[%emt 0:01:08]} 8. a4 {[%emt 0:05:11]} d5 {[%emt 0:05:15]} 9. Nc3 {[%emt 0:07:00]} Nxd4 {[%emt 0:05:17]} 10. Bxd4 {[%emt 0:18:35]} e5 {[%emt 0:00:05]} 11. Bxe5 {[%emt 0:00:17]} Qxe5 {[%emt 0:00:03]} 12. exd5 {[%emt 0:00:06]} Be7 {[%emt 0:02:02]} 13. Re1 {[%emt 0:01:03]} Qd6 {[%emt 0:00:08]} 14. Qe2 {[%emt 0:01:26]} Bd7 {[%emt 0:03:49]} 15. Ra3 {[%emt 0:06:55]} Kf8 {[%emt 0:21:59]} 16. Rb3 {[%emt 0:02:34]} Re8 {[%emt 0:00:58]} 17. Rxb7 {[%emt 0:07:47]} Bd8 {[%emt 0:02:51]} 18. Qd2 {[%emt 0:00:11]} Rxe1+ {[%emt 0:00:26]} 19. Qxe1 {[%emt 0:00:02]} g6 {[%emt 0:06:24]} 20. Qe3 {[%emt 0:02:58]} Kg7 {[%emt 0:02:37]} 21. Qd4 {[%emt 0:03:58]} Bc8 {[%emt 0:06:25]} 22. Rb3 {[%emt 0:05:24]} Re8 {[%emt 0:00:34]} 23. f3 {[%emt 0:02:45]} Re1+ {[%emt 0:11:24]} 24. Kf2 {[%emt 0:00:23]} Re6 {[%emt 0:00:07]} 25. Rb4 {[%emt 0:07:12]} Bb6 {[%emt 0:02:10]} 26. Rxb6 {[%emt 0:02:35]} Qxb6 {[%emt 0:00:20]} 27. Qxb6 {[%emt 0:00:05]} Rxb6 {[%emt 0:00:03]} 28. b3 {[%emt 0:00:07]} Bb7 {[%emt 0:01:10]} 29. Bc4 {[%emt 0:00:11]} Rd6 {[%emt 0:00:05]} 30. Ne4 {[%emt 0:00:27]} Nxe4+ {[%emt 0:03:53]} 31. fxe4 {[%emt 0:00:01]} Kf6 {[%emt 0:00:04]} 32. Ke3 {[%emt 0:02:04]} Ke5 {[%emt 0:00:05]} 33. b4 {[%emt 0:02:51]} f5 {[%emt 0:00:16]} 34. Bb3 {[%emt 0:00:45]} Rb6 {[%emt 0:02:25]} 35. c3 {[%emt 0:00:24]} fxe4 {[%emt 0:00:05]} 36. a5 {[%emt 0:00:42]} Rf6 {[%emt 0:01:31]} 37. c4 {[%emt 0:00:15]} Rf1 {[%emt 0:00:25]} 38. b5 {[%emt 0:00:42]} axb5 {[%emt 0:00:09]} 39. cxb5 {[%emt 0:00:02]} Rb1 {[%emt 0:01:03]} 0-1

[Event "Polish Youth Ekstraliga 2022"]
[Site "Lublin"]
[Date "2022.06.25"]
[Round "1.9"]
[White "Zielonka, Adam"]
[Black "Bartoszczuk, Adam"]
[Result "1-0"]
[ECO "B52"]
[WhiteElo "1988"]
[BlackElo "1662"]
[Annotator "NA RC"]
[PlyCount "77"]
[EventDate "2022.06.24"]
[EventType "team-tourn"]
[EventCountry "POL"]
[SourceTitle "playchess.com"]
[Source "ChessBase"]
[SourceQuality "1"]
[TimeControl "40/5400+30:1800+30"]

1. e4 {[%emt 0:00:03]} c5 {[%emt 0:00:07]} 2. Nf3 {[%emt 0:00:03]} d6 {[%emt 0:00:08]} 3. Bb5+ {[%emt 0:00:21]} Bd7 {[%emt 0:00:19]} 4. Bxd7+ {[%emt 0:00:06]} Qxd7 {[%emt 0:00:04]} 5. O-O {[%emt 0:00:41]} Nc6 {[%emt 0:02:36]} 6. Re1 {[%emt 0:01:16]} e6 {[%emt 0:04:59]} 7. Qe2 {[%emt 0:06:29]} Nf6 {[%emt 0:07:08]} 8. d3 {[%emt 0:03:33]} Be7 {[%emt 0:02:27]} 9. e5 {[%emt 0:06:17]} dxe5 {[%emt 0:07:43]} 10. Nxe5 {[%emt 0:01:17]} Nxe5 {[%emt 0:00:09]} 11. Qxe5 {[%emt 0:00:05]} O-O {[%emt 0:01:30]} 12. Nc3 {[%emt 0:01:05]} Rfd8 {[%emt 0:05:42]} 13. Bf4 {[%emt 0:03:02]} Rac8 {[%emt 0:06:23]} 14. a4 {[%emt 0:07:22]} Nd5 {[%emt 0:05:26]} 15. Nxd5 {[%emt 0:00:22]} Qxd5 {[%emt 0:00:08]} 16. b3 {[%emt 0:02:35]} Qc6 {[%emt 0:08:35]} 17. Qe4 {[%emt 0:01:47]} Qb6 {[%emt 0:11:47]} 18. Be5 {[%emt 0:03:49]} Rd5 {[%emt 0:07:35]} 19. Bc3 {[%emt 0:04:18]} Rcd8 {[%emt 0:06:04]} 20. Re3 {[%emt 0:02:24]} Rf5 {[%emt 0:04:55]} 21. Rg3 {[%emt 0:07:16]} Bf6 {[%emt 0:01:25]} 22. Bxf6 {[%emt 0:01:36]} Rxf6 {[%emt 0:00:08]} 23. a5 {[%emt 0:02:54]} Qb5 {[%emt 0:06:55]} ({Don't play} 23... Qb4 24. Qxb4 cxb4 25. Rg4 $16) (23... Qc7 $1 $11) 24. Qh4 {[%emt 0:07:02]} Kh8 $16 {[%emt 0:01:20]} 25. Rxg7 {[%emt 0:17:42]} Kxg7 {[%emt 0:00:28]} 26. Qg5+ {[%emt 0:00:04]} Rg6 {[%emt 0:00:09]} 27. Qxd8 {[%emt 0:00:06]} Qb4 {[%emt 0:02:44]} 28. Qb8 {[%emt 0:01:15]} Qc3 {[%emt 0:01:16]} 29. Rf1 {[%emt 0:01:34]} Qxc2 {[%emt 0:02:09]} 30. Qxb7 {[%emt 0:01:38]} Qxd3 {[%emt 0:01:27]} 31. Qxa7 {[%emt 0:00:12]} Qxb3 {[%emt 0:02:47]} 32. Qxc5 {[%emt 0:00:09]} Qa4 {[%emt 0:00:15]} 33. Qe5+ {[%emt 0:00:46]} Kg8 {[%emt 0:00:58]} 34. Rb1 {[%emt 0:00:58]} f6 {[%emt 0:01:09]} 35. Qxe6+ {[%emt 0:00:08]} Kg7 {[%emt 0:00:09]} 36. Rb7+ {[%emt 0:00:44]} Kh6 {[%emt 0:00:16]} 37. Qe3+ {[%emt 0:00:07]} Rg5 {[%emt 0:00:15]} 38. Qh3+ {[%emt 0:00:19]} Rh5 {[%emt 0:00:14]} 39. Rxh7+ {[%emt 0:00:07]} 1-0

[Event "Polish Youth Ekstraliga 2022"]
[Site "Lublin"]
[Date "2022.06.25"]
[Round "1.10"]
[White "Kaszuba, Michal"]
[Black "Liskiewicz, Jakub"]
[Result "0-1"]
[ECO "E10"]
[WhiteElo "1307"]
[BlackElo "1839"]
[Annotator "NA RC"]
[PlyCount "176"]
[EventDate "2022.06.24"]
[EventType "team-tourn"]
[EventCountry "POL"]
[SourceTitle "playchess.com"]
[Source "ChessBase"]
[SourceQuality "1"]
[TimeControl "40/5400+30:1800+30"]

1. d4 {[%emt 0:00:07]} Nf6 {[%emt 0:00:08]} 2. c4 {[%emt 0:00:39]} e6 {[%emt 0:00:11]} 3. Nf3 {[%emt 0:02:45]} d5 {[%emt 0:00:09]} 4. g3 {[%emt 0:08:36]} c6 {[%emt 0:00:16]} 5. Bg2 {[%emt 0:08:18]} Nbd7 {[%emt 0:00:13]} 6. O-O {[%emt 0:06:54]} Bd6 {[%emt 0:00:26]} 7. b3 {[%emt 0:10:19]} O-O {[%emt 0:00:46]} 8. Nc3 {[%emt 0:03:59]} dxc4 {[%emt 0:04:38]} 9. bxc4 {[%emt 0:01:59]} e5 {[%emt 0:00:53]} 10. d5 {[%emt 0:06:19]} cxd5 {[%emt 0:01:56]} 11. cxd5 {[%emt 0:04:17]} Qa5 {[%emt 0:02:14]} 12. Qb3 {[%emt 0:08:08]} Nc5 {[%emt 0:01:37]} 13. Qc2 {[%emt 0:06:30]} Bd7 {[%emt 0:03:19]} 14. Bd2 {[%emt 0:08:59]} Rac8 {[%emt 0:04:43]} 15. Qb2 {[%emt 0:01:44]} Qa6 $15 {[%emt 0:02:53]} 16. Be3 {[%emt 0:04:43]} Na4 {[%emt 0:02:02]} 17. Nxa4 {[%emt 0:00:42]} Bxa4 {[%emt 0:00:09]} 18. Nxe5 {[%emt 0:02:31]} Rc2 {[%emt 0:01:24]} 19. Qd4 {[%emt 0:02:16]} Re8 {[%emt 0:03:33]} 20. Nd3 {[%emt 0:00:55]} Rxe2 {[%emt 0:00:32]} 21. Bf3 {[%emt 0:02:29]} Rc2 {[%emt 0:01:07]} 22. Nb4 {[%emt 0:04:03]} Bxb4 {[%emt 0:01:13]} 23. Qxb4 {[%emt 0:00:11]} Bd7 {[%emt 0:02:58]} 24. Qb3 {[%emt 0:03:41]} Rcc8 {[%emt 0:02:42]} 25. Rac1 {[%emt 0:00:29]} Bh3 {[%emt 0:01:22]} 26. Bg2 {[%emt 0:00:17]} Bxg2 {[%emt 0:00:36]} 27. Kxg2 {[%emt 0:00:10]} Rcd8 {[%emt 0:00:57]} 28. Bg5 {[%emt 0:01:32]} Rd7 {[%emt 0:03:21]} 29. Bxf6 {[%emt 0:00:40]} Qxf6 {[%emt 0:00:09]} 30. Qb5 {[%emt 0:00:35]} Red8 {[%emt 0:00:44]} 31. Rfe1 {[%emt 0:00:34]} Qf5 {[%emt 0:00:56]} 32. Rcd1 {[%emt 0:00:34]} h5 {[%emt 0:00:28]} 33. Rd4 {[%emt 0:00:32]} a6 {[%emt 0:01:44]} 34. Qc5 {[%emt 0:00:22]} Rxd5 {[%emt 0:02:24]} 35. Rxd5 {[%emt 0:00:28]} Rxd5 {[%emt 0:00:08]} ({Worse is} 35... Qxd5+ 36. Qxd5 Rxd5 37. Re8+ Kh7 38. Re7 $17) 36. Qe3 {[%emt 0:00:36]} h4 {[%emt 0:00:40]} 37. gxh4 {[%emt 0:00:32]} Qg6+ {[%emt 0:03:18]} 38. Qg3 {[%emt 0:00:22]} Qc6 {[%emt 0:00:17]} 39. Kg1 {[%emt 0:00:39]} Rd6 {[%emt 0:00:25]} 40. h5 {[%emt 0:00:00]} Qd5 {[%emt 0:00:00]} 41. Qe5 {[%emt 0:13:33]} Qd2 {[%emt 0:07:25]} 42. Qe8+ {[%emt 0:09:22]} Kh7 {[%emt 0:00:09]} 43. Qe4+ {[%emt 0:01:01]} Kh6 {[%emt 0:00:50]} 44. Qe3+ {[%emt 0:04:26]} Kxh5 {[%emt 0:00:17]} 45. Qxd2 {[%emt 0:03:33]} Rxd2 {[%emt 0:00:08]} 46. Re7 {[%emt 0:00:10]} Kg6 {[%emt 0:00:17]} 47. Rxb7 {[%emt 0:00:15]} Rxa2 {[%emt 0:00:06]} 48. Kg2 {[%emt 0:00:26]} a5 {[%emt 0:00:19]} 49. Ra7 {[%emt 0:00:14]} Kf6 {[%emt 0:00:24]} 50. Ra6+ {[%emt 0:00:55]} Ke5 {[%emt 0:00:06]} 51. Ra7 {[%emt 0:00:28]} Ke6 {[%emt 0:00:26]} 52. Kf3 {[%emt 0:00:41]} g6 {[%emt 0:00:12]} 53. Ra6+ {[%emt 0:00:17]} Kd5 {[%emt 0:00:25]} 54. Rf6 {[%emt 0:00:18]} a4 {[%emt 0:00:53]} 55. Rxf7 {[%emt 0:00:18]} a3 {[%emt 0:00:22]} 56. Rf6 {[%emt 0:00:27]} Rb2 {[%emt 0:00:52]} 57. Rxg6 {[%emt 0:00:12]} a2 {[%emt 0:00:09]} 58. Ra6 {[%emt 0:00:09]} Kc4 {[%emt 0:00:15]} 59. h4 {[%emt 0:01:20]} Kb4 {[%emt 0:01:06]} 60. Kg4 {[%emt 0:02:20]} Kb5 {[%emt 0:04:48]} 61. Rxa2 {[%emt 0:00:37]} Rxa2 {[%emt 0:00:48]} 62. f4 {[%emt 0:00:31]} Kc5 {[%emt 0:00:27]} 63. h5 {[%emt 0:00:28]} Kd6 {[%emt 0:00:21]} 64. Kg5 {[%emt 0:00:14]} Ke7 {[%emt 0:00:07]} 65. Kg6 {[%emt 0:00:28]} Kf8 {[%emt 0:00:08]} 66. f5 {[%emt 0:00:47]} Ra7 {[%emt 0:00:20]} 67. h6 {[%emt 0:00:28]} Kg8 {[%emt 0:00:10]} 68. Kf6 {[%emt 0:00:34]} Kh7 {[%emt 0:01:13]} 69. Kg5 {[%emt 0:00:18]} Rf7 {[%emt 0:00:07]} 70. f6 {[%emt 0:00:20]} Rf8 {[%emt 0:00:04]} 71. Kf5 {[%emt 0:00:14]} Kxh6 {[%emt 0:00:16]} 72. Ke6 {[%emt 0:00:12]} Kg6 {[%emt 0:00:13]} 73. f7 {[%emt 0:00:28]} Rxf7 {[%emt 0:00:05]} 74. Ke5 {[%emt 0:00:07]} Re7+ {[%emt 0:00:13]} 75. Kd6 {[%emt 0:00:07]} Re1 {[%emt 0:00:06]} 76. Kd5 {[%emt 0:00:22]} Kf5 {[%emt 0:00:07]} 77. Kd4 {[%emt 0:00:07]} Re5 {[%emt 0:00:07]} 78. Kd3 {[%emt 0:00:12]} Re4 {[%emt 0:00:06]} 79. Kd2 {[%emt 0:00:05]} Kf4 {[%emt 0:00:16]} 80. Kd3 {[%emt 0:00:19]} Kf3 {[%emt 0:00:06]} 81. Kc3 {[%emt 0:00:21]} Ke3 {[%emt 0:00:07]} 82. Kc2 {[%emt 0:00:17]} Rc4+ {[%emt 0:00:07]} 83. Kb3 {[%emt 0:00:17]} Kd3 {[%emt 0:00:05]} 84. Kb2 {[%emt 0:00:10]} Rc3 {[%emt 0:00:05]} 85. Kb1 {[%emt 0:00:06]} Rc2 {[%emt 0:00:08]} 86. Ka1 {[%emt 0:00:04]} Kc3 {[%emt 0:00:05]} 87. Kb1 {[%emt 0:00:04]} Kb3 {[%emt 0:00:04]} 88. Ka1 {[%emt 0:00:05]} Rc1# {[%emt 0:00:05]} 0-1

[Event "Polish Youth Ekstraliga 2022"]
[Site "Lublin"]
[Date "2022.06.25"]
[Round "1.11"]
[White "Zabrzanska, Weronika"]
[Black "Goraj, Barbara"]
[Result "0-1"]
[ECO "B22"]
[WhiteElo "1882"]
[BlackElo "2035"]
[Annotator "NA RC"]
[PlyCount "50"]
[EventDate "2022.06.24"]
[EventType "team-tourn"]
[EventCountry "POL"]
[SourceTitle "playchess.com"]
[Source "ChessBase"]
[SourceQuality "1"]
[TimeControl "40/5400+30:1800+30"]

1. e4 {[%emt 0:00:04]} c5 {[%emt 0:00:09]} 2. c3 {[%emt 0:00:07]} Nf6 {[%emt 0:00:12]} 3. e5 {[%emt 0:00:11]} Nd5 {[%emt 0:00:09]} 4. Nf3 {[%emt 0:00:10]} Nc6 {[%emt 0:01:19]} 5. d4 {[%emt 0:01:17]} cxd4 {[%emt 0:00:43]} 6. cxd4 {[%emt 0:00:21]} d6 {[%emt 0:00:44]} 7. Bc4 {[%emt 0:01:24]} e6 {[%emt 0:00:24]} 8. O-O {[%emt 0:06:38]} Be7 {[%emt 0:00:39]} 9. Re1 {[%emt 0:01:03]} O-O {[%emt 0:01:39]} 10. Nbd2 {[%emt 0:05:20]} dxe5 {[%emt 0:19:32]} 11. dxe5 {[%emt 0:01:42]} Na5 {[%emt 0:09:24]} 12. Bd3 {[%emt 0:06:53]} Nb4 {[%emt 0:10:51]} 13. Bb1 {[%emt 0:10:08]} b6 {[%emt 0:02:53]} 14. Qe2 {[%emt 0:03:12]} Ba6 {[%emt 0:06:21]} 15. Qe4 {[%emt 0:02:04]} Bd3 {[%emt 0:13:45]} 16. Bxd3 {[%emt 0:11:28]} Nxd3 {[%emt 0:01:24]} 17. Re3 {[%emt 0:04:56]} Nc5 {[%emt 0:05:49]} 18. Qg4 {[%emt 0:02:12]} Nc6 $1 {[%emt 0:01:07]} 19. Ne1 $15 {[%emt 0:16:29]} ({White should play} 19. b4 $1 $11 Nd3 20. b5) 19... Qd5 {[%emt 0:02:40]} 20. Ndf3 {[%emt 0:04:02]} a5 {[%emt 0:02:56]} 21. Re2 {[%emt 0:01:24]} Kh8 {[%emt 0:03:39]} 22. Bf4 {[%emt 0:03:26]} Rad8 {[%emt 0:04:16]} 23. Nc2 {[%emt 0:01:27]} Qc4 {[%emt 0:01:22]} 24. Rae1 {[%emt 0:00:32]} Nd3 {[%emt 0:01:37]} 25. Ng5 {[%emt 0:07:30]} Qxf4 {[%emt 0:01:32]} 0-1

[Event "Polish Youth Ekstraliga 2022"]
[Site "Lublin"]
[Date "2022.06.25"]
[Round "1.12"]
[White "Jaros, Emilia"]
[Black "Polakiewicz, Blanka"]
[Result "1-0"]
[ECO "B13"]
[WhiteElo "1366"]
[BlackElo "1151"]
[Annotator "NA RC"]
[PlyCount "140"]
[EventDate "2022.06.24"]
[EventType "team-tourn"]
[EventCountry "POL"]
[SourceTitle "playchess.com"]
[Source "ChessBase"]
[SourceQuality "1"]
[TimeControl "40/5400+30:1800+30"]

1. e4 {[%emt 0:00:07]} c6 {[%emt 0:00:07]} 2. d4 {[%emt 0:00:15]} d5 {[%emt 0:00:10]} 3. exd5 {[%emt 0:00:28]} cxd5 {[%emt 0:00:09]} 4. Bd3 {[%emt 0:00:33]} Nc6 {[%emt 0:00:19]} 5. c3 {[%emt 0:00:42]} Nf6 {[%emt 0:00:22]} 6. Bf4 {[%emt 0:00:42]} Bg4 {[%emt 0:01:39]} 7. Qb3 {[%emt 0:01:07]} Qd7 {[%emt 0:03:01]} 8. Nd2 {[%emt 0:02:59]} e6 {[%emt 0:04:45]} 9. Ngf3 {[%emt 0:01:23]} a6 {[%emt 0:06:46]} 10. O-O {[%emt 0:02:43]} Be7 {[%emt 0:03:17]} 11. Rae1 {[%emt 0:05:36]} O-O {[%emt 0:06:20]} 12. Ne5 {[%emt 0:13:09]} Nxe5 {[%emt 0:01:34]} 13. Bxe5 {[%emt 0:02:23]} b5 {[%emt 0:06:43]} 14. Qc2 {[%emt 0:06:41]} g6 {[%emt 0:04:16]} 15. f3 {[%emt 0:12:08]} Bf5 {[%emt 0:01:10]} 16. Bxf5 {[%emt 0:05:50]} exf5 {[%emt 0:01:04]} 17. Re2 {[%emt 0:07:44]} Rac8 {[%emt 0:03:15]} 18. Qb3 {[%emt 0:03:21]} Rfd8 {[%emt 0:04:59]} 19. Rfe1 {[%emt 0:05:20]} Qc6 {[%emt 0:02:34]} 20. Bg3 {[%emt 0:05:07]} Bf8 {[%emt 0:03:47]} 21. Bh4 {[%emt 0:01:44]} Kg7 {[%emt 0:03:03]} 22. f4 {[%emt 0:03:25]} Rb8 {[%emt 0:06:34]} 23. Bxf6+ {[%emt 0:01:54]} Kxf6 {[%emt 0:01:58]} 24. Nf3 {[%emt 0:02:43]} Qc4 {[%emt 0:06:10]} 25. Ne5 {[%emt 0:01:47]} Qxb3 {[%emt 0:01:31]} 26. axb3 {[%emt 0:00:10]} Rbc8 {[%emt 0:02:16]} 27. Ra1 {[%emt 0:01:03]} Ra8 {[%emt 0:04:36]} 28. g3 {[%emt 0:00:22]} Bd6 {[%emt 0:03:22]} 29. Kf2 {[%emt 0:01:09]} Bxe5 {[%emt 0:02:35]} 30. Rxe5 {[%emt 0:00:46]} Rd6 {[%emt 0:01:47]} 31. h3 {[%emt 0:01:10]} h5 {[%emt 0:01:00]} 32. g4 {[%emt 0:01:31]} hxg4 {[%emt 0:01:31]} 33. hxg4 {[%emt 0:01:00]} fxg4 {[%emt 0:00:27]} 34. Rae1 {[%emt 0:02:38]} Rd7 {[%emt 0:03:16]} 35. Rh1 {[%emt 0:00:50]} Rad8 {[%emt 0:02:42]} 36. Kg3 {[%emt 0:00:35]} Re7 {[%emt 0:01:24]} 37. Rxe7 {[%emt 0:02:05]} Kxe7 {[%emt 0:00:08]} 38. Kxg4 {[%emt 0:00:15]} Kf6 {[%emt 0:01:20]} 39. Ra1 {[%emt 0:00:36]} Rd6 {[%emt 0:00:51]} 40. Re1 {[%emt 0:00:00]} Rd8 {[%emt 0:00:00]} 41. Re5 {[%emt 0:01:25]} Rd7 {[%emt 0:03:19]} 42. b4 {[%emt 0:02:32]} Kg7 {[%emt 0:02:17]} 43. Kf3 {[%emt 0:08:08]} Kf6 {[%emt 0:01:29]} 44. Kg4 {[%emt 0:05:52]} Kg7 {[%emt 0:00:16]} 45. Re8 {[%emt 0:03:53]} Kf6 {[%emt 0:01:35]} 46. Ra8 {[%emt 0:00:31]} Rd6 {[%emt 0:00:38]} 47. Ra7 {[%emt 0:00:53]} Ke6 {[%emt 0:02:58]} 48. Kg5 {[%emt 0:01:35]} Rc6 {[%emt 0:01:58]} 49. Kh6 {[%emt 0:01:44]} Kf6 {[%emt 0:02:20]} 50. Rd7 {[%emt 0:00:57]} Ke6 {[%emt 0:01:15]} 51. Rd8 {[%emt 0:00:36]} Rd6 {[%emt 0:01:17]} 52. Rf8 {[%emt 0:01:41]} Kf6 {[%emt 0:00:33]} 53. Kh7 {[%emt 0:01:28]} Rd7 {[%emt 0:03:02]} 54. Ra8 {[%emt 0:02:30]} Rd6 {[%emt 0:00:58]} 55. Ra7 {[%emt 0:00:13]} g5 {[%emt 0:06:50]} 56. fxg5+ {[%emt 0:01:20]} Kxg5 {[%emt 0:00:29]} 57. Rxf7 {[%emt 0:01:58]} Rd8 {[%emt 0:01:59]} 58. Kg7 {[%emt 0:00:44]} Rd6 {[%emt 0:02:02]} 59. Kf8 {[%emt 0:00:55]} Kg6 {[%emt 0:00:40]} 60. Ke7 {[%emt 0:00:31]} Rb6 {[%emt 0:00:59]} 61. Rf8 {[%emt 0:00:30]} Kg5 {[%emt 0:03:47]} 62. Rd8 {[%emt 0:00:48]} Kf4 {[%emt 0:00:18]} 63. Rxd5 {[%emt 0:00:21]} Ke4 {[%emt 0:00:29]} 64. Rd6 {[%emt 0:00:27]} Rb7+ {[%emt 0:00:19]} 65. Rd7 {[%emt 0:01:14]} Rb6 {[%emt 0:00:14]} 66. d5 {[%emt 0:00:49]} Ke5 {[%emt 0:00:10]} 67. d6 {[%emt 0:00:33]} Kd5 {[%emt 0:00:14]} 68. Rd8 {[%emt 0:00:30]} Rb7+ {[%emt 0:01:05]} 69. d7 {[%emt 0:00:17]} Ke5 {[%emt 0:00:30]} 70. Rc8 {[%emt 0:00:24]} Rxd7+ {[%emt 0:00:43]} 1-0

[Event "Polish Youth Ekstraliga 2022"]
[Site "Lublin"]
[Date "2022.06.25"]
[Round "1.13"]
[White "Baum, Jonasz"]
[Black "Niedbala, Bartlomiej"]
[Result "1/2-1/2"]
[ECO "E04"]
[WhiteElo "2409"]
[BlackElo "2384"]
[Annotator "TA"]
[PlyCount "51"]
[EventDate "2022.06.24"]
[EventType "team-tourn"]
[EventCountry "POL"]
[SourceTitle "playchess.com"]
[Source "ChessBase"]
[SourceQuality "1"]
[TimeControl "40/5400+30:1800+30"]

{[%evp 11,51,24,20,9,29,35,27,18,27,15,20,18,27,19,23,26,43,26,46,0,0,0,0,0,20,-16,-15,-24,-11,-31,-19,-40,-31,-54,-62,-62,0,-6,0,-49,0,-17]} 1. d4 {[%emt 0:00:03]} Nf6 {[%emt 0:00:06]} 2. c4 {[%emt 0:00:26]} e6 {[%emt 0:00:09]} 3. Nf3 {[%emt 0:00:12]} d5 {[%emt 0:00:06]} 4. g3 {[%emt 0:00:20]} dxc4 {[%emt 0:00:07]} 5. Bg2 {[%emt 0:00:10]} Bb4+ {[%emt 0:00:04]} 6. Bd2 {[%emt 0:00:18]} a5 {[%emt 0:00:05]} 7. Qc2 {[%emt 0:01:08] E04: Open Catalan: 5 Nf3.} c5 {[%emt 0:00:31]} (7... b6 {is more complex.} 8. Ne5 Ra7 9. Bxb4 axb4 10. Qxc4 Qd6) 8. a3 {[%emt 0:06:48]} Bxd2+ {[%emt 0:00:55]} 9. Nbxd2 {[%emt 0:00:05] White has an edge.} cxd4 {[%emt 0:01:00]} 10. Nxc4 {[%emt 0:00:06][%cal Of3d4]} Nc6 {[%emt 0:01:57]} 11. O-O {[%emt 0:00:50] [#]} d3 $146 {[%emt 0:02:56]} ({Predecessor:} 11... O-O 12. Rfd1 Re8 13. Rac1 e5 14. b4 axb4 15. axb4 Nxb4 16. Qb2 Nc6 17. Nb6 Rb8 {½-½ (60) Xiong,J (2651)-Melkumyan,H (2660) Chess.com INT 2018}) 12. Qxd3 {[%emt 0:08:28]} Qxd3 {[%emt 0:00:02]} 13. exd3 {[%emt 0:00:06]} Ke7 {[%emt 0:02:17]} 14. Rac1 {[%emt 0:04:24]} (14. Rfe1 {keeps more tension.} Bd7 15. Nfe5 Rhd8 16. Rac1) 14... Ra6 {[%emt 0:09:09][%cal Ba8a6,Ba6b6,Bb6b5][%mdl 32]} 15. Nce5 {[%emt 0:05:28]} (15. Rfe1 $14) 15... Bd7 $11 {[%emt 0:04:12]} 16. Nxd7 {[%emt 0:07:50]} Nxd7 {[%emt 0:01:24]} 17. d4 {[%emt 0:09:40]} Rb6 {[%emt 0:07:23]} 18. Rc2 {[%emt 0:10:54]} (18. Rfe1 {seems wilder.} Kf6 19. d5 exd5 20. Rcd1) 18... Rd8 {[%emt 0:05:22]} 19. Rd1 {[%emt 0:00:46]} Nf6 {[%emt 0:04:05]} 20. Kf1 {[%emt 0:05:55]} h6 {[%emt 0:01:24]} 21. h4 {[%emt 0:04:04]} Rb5 {[%emt 0:04:17]} 22. Rcd2 {[%emt 0:04:15][%cal Of3e5]} Ne4 {[%emt 0:13:16]} 23. Re2 {[%emt 0:01:00]} Nf6 {[%emt 0:15:06]} (23... Nc5 $15) 24. Red2 {[%emt 0:00:25]} Ne4 {[%emt 0:01:51]} 25. Re2 {[%emt 0:00:25]} Nf6 {[%emt 0:03:08]} 26. Red2 {[%emt 0:01:58] Weighted Error Value: White=0.09 (flawless) /Black=0.14 (very precise)} 1/2-1/2